{"text_format":"3","workbook":"xlsx","n_sheets":4,"sheets":["Început","Raport privind bugetul lunar","Cheltuieli lunare","Date suplimentare"],"not_rendered":{"charts":1,"defined_names":3,"pivot_tables":2},"read":"whole","date_system":"1900"}

{"sheet":"Început","index":0,"n_rows":8,"n_cols":2,"rows_kept":8}
[null,"DESPRE ACEST ȘABLON"]
[null,"Utilizați acest registru de lucru pentru a vă monitoriza cheltuielile și pentru a crea Bugetul familiei."]
[null,"Introduceți veniturile estimate și reale din surse diferite în foaia de lucru Raport privind bugetul lunar și sumele estimate și reale cheltuite pentru categorii diferite în foaia de lucru Cheltuieli lunare."]
[null,"Soldul estimat și real și diferență sunt calculate automat, iar Rezumatul bugetului și diagrama Prezentarea generală a bugetului sunt actualizate în foaia de lucru Raport privind bugetul lunar."]
[null,"Puteți să modificați sau să introduceți o categorie nouă în tabelul din foaia de lucru Date suplimentare."]
[null,"Notă: "]
[null,"În coloana A a foii de lucru RAPORT PRIVIND BUGETUL LUNAR și în celula A1 din foile de lucru CHELTUIELI LUNARE și DATE SUPLIMENTARE sunt oferite instrucțiuni suplimentare. Acest text a fost ascuns intenționat. Pentru a elimina textul, selectați coloana A sau celula A1, apoi DELETE. Pentru a reafișa textul, selectați coloana A sau celula A1, apoi schimbați culoarea de font."]
[null,"Pentru a afla mai multe despre tabele, apăsați SHIFT, apoi F10 într-un tabel, selectați opțiunea TABEL, apoi TEXT ALTERNATIV. Pentru rapoartele PivotTable, apăsați SHIFT, apoi F10 într-un tabel, selectați OPȚIUNI PIVOTTABLE, apoi fila TEXT ALTERNATIV."]

{"sheet":"Raport privind bugetul lunar","index":1,"n_rows":34,"n_cols":14,"rows_kept":34,"merged":[[0,1,0,4],[0,5,0,7],[0,12,0,13],[1,9,5,13],[2,2,2,5],[3,2,3,5],[4,2,4,5],[7,1,10,1],[7,5,10,5],[7,6,10,6],[8,9,31,9],[12,1,16,1],[12,5,16,5],[12,6,16,6],[19,1,34,6]]}
["Creați un Raport privind bugetul lunar în această foaie de lucru. Titlul acestei foi de lucru se află în celula din dreapta și subtitlul în celula J1. Selectați celula F1 pentru a naviga la foaia de lucru Cheltuieli lunare. Găsiți alte instrucțiuni utile despre cum să utilizați această foaie de lucru în celulele din această coloană.","Prezentarea generală a bugetului",{"$nulls":3},"Cheltuieli lunare",{"$nulls":3},"Rezumatul bugetului",null,null,"Un fir de grâu de culoare verde se află în această celulă."]
["Eticheta Sold se află în celula din dreapta. Slicerele PivotTable pentru filtrarea datelor din tabel se află în celulele J2-N6. Pentru a selecta mai multe categorii, țineți apăsată tasta Control.","Sold",{"$nulls":7},"Slicerul Categorie pentru filtrarea raportului PivotTable de mai jos după categorie selectată se află în această celulă."]
["Eticheta Sold estimat se află în celula din dreapta. Soldul estimat se calculează automat în celula G3.","Sold estimat","(Estimat minus cheltuieli)",{"$nulls":3},{"$f":"D17-SUM(DetaliiBuget[Costul estimat])","v":{"v":1585,"d":"1,585 lei"}}]
["Eticheta Sold real se află în celula din dreapta. Soldul real se calculează automat în celula G4.","Sold real ","(Real minus cheltuieli)",{"$nulls":3},{"$f":"D11-SUM(DetaliiBuget[Costul real])","v":{"v":1740,"d":"1,740 lei"}}]
["Eticheta Diferență se află în celula din dreapta. Diferența se calculează automat în celula G5. Următoarele instrucțiuni se află în celula A7.","Diferență","(Real minus estimat)",{"$nulls":3},{"$f":"G4-G3","v":{"v":155,"d":"155 lei"}}]
[]
["Eticheta Venit se află în celula din dreapta, eticheta Cheltuieli în celula F7 și Sfat pentru rezumatul bugetului în celula J7.","Venit",{"$nulls":3},"Cheltuieli",{"$nulls":3},"Selectați raportul PivotTable de mai jos, apoi selectați Reîmprospătare în fila Analiză pentru a-l actualiza."]
["Eticheta Venituri reale se află în celula din dreapta și eticheta Cheltuieli reale în celula F8. Introduceți Venitul 1 în celula D8. Cheltuielile reale se calculează automat în celula G8.","REAL","Venit 1",{"v":5800,"d":"5,800 lei"},null,"REALE",{"$f":"SUM(DetaliiBuget[Costul real])","v":{"v":7860,"d":"7,860 lei"}}]
["Introduceți Venitul 2 în celula D9. Imaginea se află în celula J9. PivotTable începe în celula K9. Pentru a actualiza raportul PivotTable, selectați Reîmprospătare în fila Analiză.",null,"Venit 2",{"v":2300,"d":"2,300 lei"},{"$nulls":5},"Imaginea se află în această celulă.","Categorie","Costul estimat ","Costul real ","Diferență "]
["Introduceți Venit suplimentar în celula D10.",null,"Venit suplimentar",{"v":1500,"d":"1,500 lei"},{"$nulls":6},"Copii",{"v":140,"d":"140 lei"},{"v":140,"d":"140 lei"},{"v":0,"d":"0 lei"}]
["Eticheta Venituri totale se află în celula C11 și valoarea se calculează automat în celula D11. Următoarele instrucțiuni se află în celula A13.",null,"Venituri totale",{"$f":"SUM(D8:D10)","v":{"v":9600,"d":"9,600 lei"}}]
[{"$nulls":10},"Distracție",{"v":400,"d":"400 lei"},{"v":358,"d":"358 lei"},{"v":42,"d":"42 lei"}]
["Eticheta Venituri estimate se află în celula din dreapta și eticheta Cheltuieli estimate în celula F13. Cheltuielile estimate se calculează automat în celula G13.","ESTIMAT",{"$nulls":3},"ESTIMATE",{"$f":"SUM(DetaliiBuget[Costul estimat])","v":{"v":7915,"d":"7,915 lei"}}]
["Introduceți Venitul 1 estimat în celula D14.",null,"Venit 1",{"v":6000,"d":"6,000 lei"},{"$nulls":6},"Alimente",{"v":1100,"d":"1,100 lei"},{"v":1320,"d":"1,320 lei"},{"v":-220,"d":"-220 lei"}]
["Introduceți Venitul 2 estimat în celula D15.",null,"Venit 2",{"v":1000,"d":"1,000 lei"}]
["Introduceți Venit suplimentar în celula D16.",null,"Venit suplimentar",{"v":2500,"d":"2,500 lei"},{"$nulls":6},"Cadouri și caritate",{"v":100,"d":"100 lei"},{"v":125,"d":"125 lei"},{"v":-25,"d":"-25 lei"}]
["Eticheta Venituri totale se află în celula C17 și valoarea se calculează automat în celula D17. Următoarele instrucțiuni se află în celula A20.",null,"Venituri totale",{"$f":"SUM(D14:D16)","v":{"v":9500,"d":"9,500 lei"}}]
[{"$nulls":10},"Locuință",{"v":2830,"d":"2,830 lei"},{"v":2702,"d":"2,702 lei"},{"v":128,"d":"128 lei"}]
[]
["Diagrama cu structură radială care afișează procentul din cheltuieli după categorie se află în celula din dreapta.","Diagrama cu structură radială care afișează procentul din cheltuieli după categorie se află în această celulă.",{"$nulls":8},"Asigurare",{"v":900,"d":"900 lei"},{"v":900,"d":"900 lei"},{"v":0,"d":"0 lei"}]
[]
[{"$nulls":10},"Împrumuturi",{"v":200,"d":"200 lei"},{"v":200,"d":"200 lei"},{"v":0,"d":"0 lei"}]
[]
[{"$nulls":10},"Îngrijire personală",{"v":150,"d":"150 lei"},{"v":140,"d":"140 lei"},{"v":10,"d":"10 lei"}]
[]
[{"$nulls":10},"Animale de casă",{"v":170,"d":"170 lei"},{"v":100,"d":"100 lei"},{"v":70,"d":"70 lei"}]
[]
[{"$nulls":10},"Economii sau investiții",{"v":200,"d":"200 lei"},{"v":200,"d":"200 lei"},{"v":0,"d":"0 lei"}]
[]
[{"$nulls":10},"Taxe",{"v":300,"d":"300 lei"},{"v":300,"d":"300 lei"},{"v":0,"d":"0 lei"}]
[]
[{"$nulls":10},"Transport",{"v":1425,"d":"1,425 lei"},{"v":1375,"d":"1,375 lei"},{"v":50,"d":"50 lei"}]
[]
[{"$nulls":10},"Total general",{"v":7915,"d":"7,915 lei"},{"v":7860,"d":"7,860 lei"},{"v":55,"d":"55 lei"}]

{"sheet":"Cheltuieli lunare","index":2,"n_rows":62,"n_cols":7,"rows_kept":62,"merged":[[0,1,0,4],[0,5,0,6]]}
["Calculați cheltuieli lunare în această foaie de lucru. Titlul acestei foi de lucru se află în celula de la dreapta. Selectați celula F1 pentru a naviga la foaia de lucru Raport privind bugetul lunar.","Cheltuieli lunare",{"$nulls":3},"Raport privind bugetul lunar"]
[" Introduceți date în tabelul Detalii Buget, începând cu celula din dreapta.","Descriere","Categorie","Costul estimat","Costul real","Diferență","Prezentare generală a costurilor reale"]
[null,"Activități extracuriculare","Copii",{"v":40,"d":"40 lei"},{"v":40,"d":"40 lei"},{"$f":"DetaliiBuget[[#This Row],[Costul estimat]]-DetaliiBuget[[#This Row],[Costul real]]","v":{"v":0,"d":"0 lei"}},{"$f":"DetaliiBuget[[#This Row],[Costul real]]","v":{"v":40,"d":"40 lei"}}]
[null,"Medicale","Copii",null,null,{"$f":"DetaliiBuget[[#This Row],[Costul estimat]]-DetaliiBuget[[#This Row],[Costul real]]","v":{"v":0,"d":"0 lei"}},{"$f":"DetaliiBuget[[#This Row],[Costul real]]","v":{"v":0,"d":"0 lei"}}]
[null,"Rechizite școlare","Copii",null,null,{"$f":"DetaliiBuget[[#This Row],[Costul estimat]]-DetaliiBuget[[#This Row],[Costul real]]","v":{"v":0,"d":"0 lei"}},{"$f":"DetaliiBuget[[#This Row],[Costul real]]","v":{"v":0,"d":"0 lei"}}]
[null,"Taxe școlare","Copii",{"v":100,"d":"100 lei"},{"v":100,"d":"100 lei"},{"$f":"DetaliiBuget[[#This Row],[Costul estimat]]-DetaliiBuget[[#This Row],[Costul real]]","v":{"v":0,"d":"0 lei"}},{"$f":"DetaliiBuget[[#This Row],[Costul real]]","v":{"v":100,"d":"100 lei"}}]
[null,"Concerte","Distracție",{"v":50,"d":"50 lei"},{"v":40,"d":"40 lei"},{"$f":"DetaliiBuget[[#This Row],[Costul estimat]]-DetaliiBuget[[#This Row],[Costul real]]","v":{"v":10,"d":"10 lei"}},{"$f":"DetaliiBuget[[#This Row],[Costul real]]","v":{"v":40,"d":"40 lei"}}]
[null,"Teatru live","Distracție",{"v":200,"d":"200 lei"},{"v":150,"d":"150 lei"},{"$f":"DetaliiBuget[[#This Row],[Costul estimat]]-DetaliiBuget[[#This Row],[Costul real]]","v":{"v":50,"d":"50 lei"}},{"$f":"DetaliiBuget[[#This Row],[Costul real]]","v":{"v":150,"d":"150 lei"}}]
[null,"Filme","Distracție",{"v":50,"d":"50 lei"},{"v":28,"d":"28 lei"},{"$f":"DetaliiBuget[[#This Row],[Costul estimat]]-DetaliiBuget[[#This Row],[Costul real]]","v":{"v":22,"d":"22 lei"}},{"$f":"DetaliiBuget[[#This Row],[Costul real]]","v":{"v":28,"d":"28 lei"}}]
[null,"Muzică (CD-uri, descărcări etc.)","Distracție",{"v":50,"d":"50 lei"},{"v":30,"d":"30 lei"},{"$f":"DetaliiBuget[[#This Row],[Costul estimat]]-DetaliiBuget[[#This Row],[Costul real]]","v":{"v":20,"d":"20 lei"}},{"$f":"DetaliiBuget[[#This Row],[Costul real]]","v":{"v":30,"d":"30 lei"}}]
[null,"Evenimente sportive","Distracție",{"v":0,"d":"0 lei"},{"v":40,"d":"40 lei"},{"$f":"DetaliiBuget[[#This Row],[Costul estimat]]-DetaliiBuget[[#This Row],[Costul real]]","v":{"v":-40,"d":"-40 lei"}},{"$f":"DetaliiBuget[[#This Row],[Costul real]]","v":{"v":40,"d":"40 lei"}}]
[null,"Video/DVD (achiziții)","Distracție",{"v":20,"d":"20 lei"},{"v":50,"d":"50 lei"},{"$f":"DetaliiBuget[[#This Row],[Costul estimat]]-DetaliiBuget[[#This Row],[Costul real]]","v":{"v":-30,"d":"-30 lei"}},{"$f":"DetaliiBuget[[#This Row],[Costul real]]","v":{"v":50,"d":"50 lei"}}]
[null,"Video/DVD (închirieri)","Distracție",{"v":30,"d":"30 lei"},{"v":20,"d":"20 lei"},{"$f":"DetaliiBuget[[#This Row],[Costul estimat]]-DetaliiBuget[[#This Row],[Costul real]]","v":{"v":10,"d":"10 lei"}},{"$f":"DetaliiBuget[[#This Row],[Costul real]]","v":{"v":20,"d":"20 lei"}}]
[null,"Masă în oraș","Alimente",{"v":1000,"d":"1,000 lei"},{"v":1200,"d":"1,200 lei"},{"$f":"DetaliiBuget[[#This Row],[Costul estimat]]-DetaliiBuget[[#This Row],[Costul real]]","v":{"v":-200,"d":"-200 lei"}},{"$f":"DetaliiBuget[[#This Row],[Costul real]]","v":{"v":1200,"d":"1,200 lei"}}]
[null,"Articole de băcănie","Alimente",{"v":100,"d":"100 lei"},{"v":120,"d":"120 lei"},{"$f":"DetaliiBuget[[#This Row],[Costul estimat]]-DetaliiBuget[[#This Row],[Costul real]]","v":{"v":-20,"d":"-20 lei"}},{"$f":"DetaliiBuget[[#This Row],[Costul real]]","v":{"v":120,"d":"120 lei"}}]
[null,"Caritate 1","Cadouri și caritate",{"v":75,"d":"75 lei"},{"v":100,"d":"100 lei"},{"$f":"DetaliiBuget[[#This Row],[Costul estimat]]-DetaliiBuget[[#This Row],[Costul real]]","v":{"v":-25,"d":"-25 lei"}},{"$f":"DetaliiBuget[[#This Row],[Costul real]]","v":{"v":100,"d":"100 lei"}}]
[null,"Caritate 2","Cadouri și caritate",{"v":25,"d":"25 lei"},{"v":25,"d":"25 lei"},{"$f":"DetaliiBuget[[#This Row],[Costul estimat]]-DetaliiBuget[[#This Row],[Costul real]]","v":{"v":0,"d":"0 lei"}},{"$f":"DetaliiBuget[[#This Row],[Costul real]]","v":{"v":25,"d":"25 lei"}}]
[null,"Cadou 1","Cadouri și caritate",null,null,{"$f":"DetaliiBuget[[#This Row],[Costul estimat]]-DetaliiBuget[[#This Row],[Costul real]]","v":{"v":0,"d":"0 lei"}},{"$f":"DetaliiBuget[[#This Row],[Costul real]]","v":{"v":0,"d":"0 lei"}}]
[null,"Cadou 2","Cadouri și caritate",null,null,{"$f":"DetaliiBuget[[#This Row],[Costul estimat]]-DetaliiBuget[[#This Row],[Costul real]]","v":{"v":0,"d":"0 lei"}},{"$f":"DetaliiBuget[[#This Row],[Costul real]]","v":{"v":0,"d":"0 lei"}}]
[null,"Cablu/satelit","Locuință",{"v":100,"d":"100 lei"},{"v":100,"d":"100 lei"},{"$f":"DetaliiBuget[[#This Row],[Costul estimat]]-DetaliiBuget[[#This Row],[Costul real]]","v":{"v":0,"d":"0 lei"}},{"$f":"DetaliiBuget[[#This Row],[Costul real]]","v":{"v":100,"d":"100 lei"}}]
[null,"Curent electric","Locuință",{"v":45,"d":"45 lei"},{"v":50,"d":"50 lei"},{"$f":"DetaliiBuget[[#This Row],[Costul estimat]]-DetaliiBuget[[#This Row],[Costul real]]","v":{"v":-5,"d":"-5 lei"}},{"$f":"DetaliiBuget[[#This Row],[Costul real]]","v":{"v":50,"d":"50 lei"}}]
[null,"Gaze","Locuință",{"v":300,"d":"300 lei"},{"v":400,"d":"400 lei"},{"$f":"DetaliiBuget[[#This Row],[Costul estimat]]-DetaliiBuget[[#This Row],[Costul real]]","v":{"v":-100,"d":"-100 lei"}},{"$f":"DetaliiBuget[[#This Row],[Costul real]]","v":{"v":400,"d":"400 lei"}}]
[null,"Servicii de curățenie a casei","Locuință",{"v":200,"d":"200 lei"},null,{"$f":"DetaliiBuget[[#This Row],[Costul estimat]]-DetaliiBuget[[#This Row],[Costul real]]","v":{"v":200,"d":"200 lei"}},{"$f":"DetaliiBuget[[#This Row],[Costul real]]","v":{"v":0,"d":"0 lei"}}]
[null,"Întreținere","Locuință",{"v":200,"d":"200 lei"},{"v":150,"d":"150 lei"},{"$f":"DetaliiBuget[[#This Row],[Costul estimat]]-DetaliiBuget[[#This Row],[Costul real]]","v":{"v":50,"d":"50 lei"}},{"$f":"DetaliiBuget[[#This Row],[Costul real]]","v":{"v":150,"d":"150 lei"}}]
[null,"Credit ipotecar sau chirie","Locuință",{"v":1700,"d":"1,700 lei"},{"v":1700,"d":"1,700 lei"},{"$f":"DetaliiBuget[[#This Row],[Costul estimat]]-DetaliiBuget[[#This Row],[Costul real]]","v":{"v":0,"d":"0 lei"}},{"$f":"DetaliiBuget[[#This Row],[Costul real]]","v":{"v":1700,"d":"1,700 lei"}}]
[null,"Gaze naturale/petrol","Locuință",null,null,{"$f":"DetaliiBuget[[#This Row],[Costul estimat]]-DetaliiBuget[[#This Row],[Costul real]]","v":{"v":0,"d":"0 lei"}},{"$f":"DetaliiBuget[[#This Row],[Costul real]]","v":{"v":0,"d":"0 lei"}}]
[null,"Servicii online/internet","Locuință",{"v":100,"d":"100 lei"},{"v":100,"d":"100 lei"},{"$f":"DetaliiBuget[[#This Row],[Costul estimat]]-DetaliiBuget[[#This Row],[Costul real]]","v":{"v":0,"d":"0 lei"}},{"$f":"DetaliiBuget[[#This Row],[Costul real]]","v":{"v":100,"d":"100 lei"}}]
[null,"Telefon (mobil)","Locuință",{"v":60,"d":"60 lei"},{"v":60,"d":"60 lei"},{"$f":"DetaliiBuget[[#This Row],[Costul estimat]]-DetaliiBuget[[#This Row],[Costul real]]","v":{"v":0,"d":"0 lei"}},{"$f":"DetaliiBuget[[#This Row],[Costul real]]","v":{"v":60,"d":"60 lei"}}]
[null,"Telefon (acasă)","Locuință",{"v":35,"d":"35 lei"},{"v":39,"d":"39 lei"},{"$f":"DetaliiBuget[[#This Row],[Costul estimat]]-DetaliiBuget[[#This Row],[Costul real]]","v":{"v":-4,"d":"-4 lei"}},{"$f":"DetaliiBuget[[#This Row],[Costul real]]","v":{"v":39,"d":"39 lei"}}]
[null,"Consumabile","Locuință",{"v":40,"d":"40 lei"},{"v":55,"d":"55 lei"},{"$f":"DetaliiBuget[[#This Row],[Costul estimat]]-DetaliiBuget[[#This Row],[Costul real]]","v":{"v":-15,"d":"-15 lei"}},{"$f":"DetaliiBuget[[#This Row],[Costul real]]","v":{"v":55,"d":"55 lei"}}]
[null,"Eliminare și reciclare deșeuri","Locuință",{"v":25,"d":"25 lei"},{"v":22,"d":"22 lei"},{"$f":"DetaliiBuget[[#This Row],[Costul estimat]]-DetaliiBuget[[#This Row],[Costul real]]","v":{"v":3,"d":"3 lei"}},{"$f":"DetaliiBuget[[#This Row],[Costul real]]","v":{"v":22,"d":"22 lei"}}]
[null,"Apă și canalizare","Locuință",{"v":25,"d":"25 lei"},{"v":26,"d":"26 lei"},{"$f":"DetaliiBuget[[#This Row],[Costul estimat]]-DetaliiBuget[[#This Row],[Costul real]]","v":{"v":-1,"d":"-1 lei"}},{"$f":"DetaliiBuget[[#This Row],[Costul real]]","v":{"v":26,"d":"26 lei"}}]
[null,"Sănătate","Asigurare",{"v":400,"d":"400 lei"},{"v":400,"d":"400 lei"},{"$f":"DetaliiBuget[[#This Row],[Costul estimat]]-DetaliiBuget[[#This Row],[Costul real]]","v":{"v":0,"d":"0 lei"}},{"$f":"DetaliiBuget[[#This Row],[Costul real]]","v":{"v":400,"d":"400 lei"}}]
[null,"Locuință","Asigurare",{"v":400,"d":"400 lei"},{"v":400,"d":"400 lei"},{"$f":"DetaliiBuget[[#This Row],[Costul estimat]]-DetaliiBuget[[#This Row],[Costul real]]","v":{"v":0,"d":"0 lei"}},{"$f":"DetaliiBuget[[#This Row],[Costul real]]","v":{"v":400,"d":"400 lei"}}]
[null,"Viață","Asigurare",{"v":100,"d":"100 lei"},{"v":100,"d":"100 lei"},{"$f":"DetaliiBuget[[#This Row],[Costul estimat]]-DetaliiBuget[[#This Row],[Costul real]]","v":{"v":0,"d":"0 lei"}},{"$f":"DetaliiBuget[[#This Row],[Costul real]]","v":{"v":100,"d":"100 lei"}}]
[null,"Card de credit 1","Împrumuturi",{"v":200,"d":"200 lei"},{"v":200,"d":"200 lei"},{"$f":"DetaliiBuget[[#This Row],[Costul estimat]]-DetaliiBuget[[#This Row],[Costul real]]","v":{"v":0,"d":"0 lei"}},{"$f":"DetaliiBuget[[#This Row],[Costul real]]","v":{"v":200,"d":"200 lei"}}]
[null,"Card de credit 2","Împrumuturi",null,null,{"$f":"DetaliiBuget[[#This Row],[Costul estimat]]-DetaliiBuget[[#This Row],[Costul real]]","v":{"v":0,"d":"0 lei"}},{"$f":"DetaliiBuget[[#This Row],[Costul real]]","v":{"v":0,"d":"0 lei"}}]
[null,"Card de credit 3","Împrumuturi",null,null,{"$f":"DetaliiBuget[[#This Row],[Costul estimat]]-DetaliiBuget[[#This Row],[Costul real]]","v":{"v":0,"d":"0 lei"}},{"$f":"DetaliiBuget[[#This Row],[Costul real]]","v":{"v":0,"d":"0 lei"}}]
[null,"Personal","Împrumuturi",null,null,{"$f":"DetaliiBuget[[#This Row],[Costul estimat]]-DetaliiBuget[[#This Row],[Costul real]]","v":{"v":0,"d":"0 lei"}},{"$f":"DetaliiBuget[[#This Row],[Costul real]]","v":{"v":0,"d":"0 lei"}}]
[null,"Student","Împrumuturi",null,null,{"$f":"DetaliiBuget[[#This Row],[Costul estimat]]-DetaliiBuget[[#This Row],[Costul real]]","v":{"v":0,"d":"0 lei"}},{"$f":"DetaliiBuget[[#This Row],[Costul real]]","v":{"v":0,"d":"0 lei"}}]
[null,"Îmbrăcăminte","Îngrijire personală",{"v":150,"d":"150 lei"},{"v":140,"d":"140 lei"},{"$f":"DetaliiBuget[[#This Row],[Costul estimat]]-DetaliiBuget[[#This Row],[Costul real]]","v":{"v":10,"d":"10 lei"}},{"$f":"DetaliiBuget[[#This Row],[Costul real]]","v":{"v":140,"d":"140 lei"}}]
[null,"Curățătorie","Îngrijire personală",null,null,{"$f":"DetaliiBuget[[#This Row],[Costul estimat]]-DetaliiBuget[[#This Row],[Costul real]]","v":{"v":0,"d":"0 lei"}},{"$f":"DetaliiBuget[[#This Row],[Costul real]]","v":{"v":0,"d":"0 lei"}}]
[null,"Păr/unghii","Îngrijire personală",null,null,{"$f":"DetaliiBuget[[#This Row],[Costul estimat]]-DetaliiBuget[[#This Row],[Costul real]]","v":{"v":0,"d":"0 lei"}},{"$f":"DetaliiBuget[[#This Row],[Costul real]]","v":{"v":0,"d":"0 lei"}}]
[null,"Club de sănătate","Îngrijire personală",null,null,{"$f":"DetaliiBuget[[#This Row],[Costul estimat]]-DetaliiBuget[[#This Row],[Costul real]]","v":{"v":0,"d":"0 lei"}},{"$f":"DetaliiBuget[[#This Row],[Costul real]]","v":{"v":0,"d":"0 lei"}}]
[null,"Medicale","Îngrijire personală",null,null,{"$f":"DetaliiBuget[[#This Row],[Costul estimat]]-DetaliiBuget[[#This Row],[Costul real]]","v":{"v":0,"d":"0 lei"}},{"$f":"DetaliiBuget[[#This Row],[Costul real]]","v":{"v":0,"d":"0 lei"}}]
[null,"Alimente","Animale de casă",{"v":150,"d":"150 lei"},{"v":75,"d":"75 lei"},{"$f":"DetaliiBuget[[#This Row],[Costul estimat]]-DetaliiBuget[[#This Row],[Costul real]]","v":{"v":75,"d":"75 lei"}},{"$f":"DetaliiBuget[[#This Row],[Costul real]]","v":{"v":75,"d":"75 lei"}}]
[null,"Îngrijire","Animale de casă",{"v":20,"d":"20 lei"},{"v":25,"d":"25 lei"},{"$f":"DetaliiBuget[[#This Row],[Costul estimat]]-DetaliiBuget[[#This Row],[Costul real]]","v":{"v":-5,"d":"-5 lei"}},{"$f":"DetaliiBuget[[#This Row],[Costul real]]","v":{"v":25,"d":"25 lei"}}]
[null,"Medicale","Animale de casă",null,null,{"$f":"DetaliiBuget[[#This Row],[Costul estimat]]-DetaliiBuget[[#This Row],[Costul real]]","v":{"v":0,"d":"0 lei"}},{"$f":"DetaliiBuget[[#This Row],[Costul real]]","v":{"v":0,"d":"0 lei"}}]
[null,"Jucării","Animale de casă",null,null,{"$f":"DetaliiBuget[[#This Row],[Costul estimat]]-DetaliiBuget[[#This Row],[Costul real]]","v":{"v":0,"d":"0 lei"}},{"$f":"DetaliiBuget[[#This Row],[Costul real]]","v":{"v":0,"d":"0 lei"}}]
[null,"Cont de investiții","Economii sau investiții",{"v":200,"d":"200 lei"},{"v":200,"d":"200 lei"},{"$f":"DetaliiBuget[[#This Row],[Costul estimat]]-DetaliiBuget[[#This Row],[Costul real]]","v":{"v":0,"d":"0 lei"}},{"$f":"DetaliiBuget[[#This Row],[Costul real]]","v":{"v":200,"d":"200 lei"}}]
[null,"Cont pensionare","Economii sau investiții",null,null,{"$f":"DetaliiBuget[[#This Row],[Costul estimat]]-DetaliiBuget[[#This Row],[Costul real]]","v":{"v":0,"d":"0 lei"}},{"$f":"DetaliiBuget[[#This Row],[Costul real]]","v":{"v":0,"d":"0 lei"}}]
[null,"Regional","Taxe",{"v":300,"d":"300 lei"},{"v":300,"d":"300 lei"},{"$f":"DetaliiBuget[[#This Row],[Costul estimat]]-DetaliiBuget[[#This Row],[Costul real]]","v":{"v":0,"d":"0 lei"}},{"$f":"DetaliiBuget[[#This Row],[Costul real]]","v":{"v":300,"d":"300 lei"}}]
[null,"Local","Taxe",null,null,{"$f":"DetaliiBuget[[#This Row],[Costul estimat]]-DetaliiBuget[[#This Row],[Costul real]]","v":{"v":0,"d":"0 lei"}},{"$f":"DetaliiBuget[[#This Row],[Costul real]]","v":{"v":0,"d":"0 lei"}}]
[null,"Județ","Taxe",null,null,{"$f":"DetaliiBuget[[#This Row],[Costul estimat]]-DetaliiBuget[[#This Row],[Costul real]]","v":{"v":0,"d":"0 lei"}},{"$f":"DetaliiBuget[[#This Row],[Costul real]]","v":{"v":0,"d":"0 lei"}}]
[null,"Tarif autobuz/taxi","Transport",{"v":100,"d":"100 lei"},{"v":150,"d":"150 lei"},{"$f":"DetaliiBuget[[#This Row],[Costul estimat]]-DetaliiBuget[[#This Row],[Costul real]]","v":{"v":-50,"d":"-50 lei"}},{"$f":"DetaliiBuget[[#This Row],[Costul real]]","v":{"v":150,"d":"150 lei"}}]
[null,"Benzină","Transport",{"v":450,"d":"450 lei"},{"v":400,"d":"400 lei"},{"$f":"DetaliiBuget[[#This Row],[Costul estimat]]-DetaliiBuget[[#This Row],[Costul real]]","v":{"v":50,"d":"50 lei"}},{"$f":"DetaliiBuget[[#This Row],[Costul real]]","v":{"v":400,"d":"400 lei"}}]
[null,"Asigurare","Transport",{"v":300,"d":"300 lei"},{"v":300,"d":"300 lei"},{"$f":"DetaliiBuget[[#This Row],[Costul estimat]]-DetaliiBuget[[#This Row],[Costul real]]","v":{"v":0,"d":"0 lei"}},{"$f":"DetaliiBuget[[#This Row],[Costul real]]","v":{"v":300,"d":"300 lei"}}]
[null,"Licențiere ","Transport",{"v":25,"d":"25 lei"},{"v":25,"d":"25 lei"},{"$f":"DetaliiBuget[[#This Row],[Costul estimat]]-DetaliiBuget[[#This Row],[Costul real]]","v":{"v":0,"d":"0 lei"}},{"$f":"DetaliiBuget[[#This Row],[Costul real]]","v":{"v":25,"d":"25 lei"}}]
[null,"Întreținere","Transport",{"v":100,"d":"100 lei"},{"v":50,"d":"50 lei"},{"$f":"DetaliiBuget[[#This Row],[Costul estimat]]-DetaliiBuget[[#This Row],[Costul real]]","v":{"v":50,"d":"50 lei"}},{"$f":"DetaliiBuget[[#This Row],[Costul real]]","v":{"v":50,"d":"50 lei"}}]
[null,"Taxe de parcare","Transport",null,null,{"$f":"DetaliiBuget[[#This Row],[Costul estimat]]-DetaliiBuget[[#This Row],[Costul real]]","v":{"v":0,"d":"0 lei"}},{"$f":"DetaliiBuget[[#This Row],[Costul real]]","v":{"v":0,"d":"0 lei"}}]
[null,"Plată vehicul","Transport",{"v":450,"d":"450 lei"},{"v":450,"d":"450 lei"},{"$f":"DetaliiBuget[[#This Row],[Costul estimat]]-DetaliiBuget[[#This Row],[Costul real]]","v":{"v":0,"d":"0 lei"}},{"$f":"DetaliiBuget[[#This Row],[Costul real]]","v":{"v":450,"d":"450 lei"}}]
[null,"Total",null,{"$f":"SUBTOTAL(109,DetaliiBuget[Costul estimat])","v":{"v":7915,"d":"7,915 lei"}},{"$f":"SUBTOTAL(109,DetaliiBuget[Costul real])","v":{"v":7860,"d":"7,860 lei"}},{"$f":"SUBTOTAL(109,DetaliiBuget[Diferență])","v":{"v":55,"d":"55 lei"}}]

{"sheet":"Date suplimentare","index":3,"n_rows":15,"n_cols":5,"rows_kept":15}
["Utilizați această foaie de lucru ca să modificați lista verticală din coloana Categorie în tabelul DetaliiBuget din foaia de lucru Cheltuieli lunare. Pentru a face acest lucru, modificați sau introduceți o categorie nouă în tabelul Căutare categorii de buget, începând din celula E2. Raportul PivotTable asociat cu diagrama Prezentare generală a bugetului din foaia de lucru Raport privind bugetul lunar începe din celula B2.","Raport PivotTable pentru diagrama Prezentare generală a bugetului",null,null,"Listă de căutare pentru categoria de detalii despre buget"]
[null,"Categorie","Cost",null,"Căutare categorii de buget"]
[null,"Copii",{"v":140,"d":"140 lei"},null,"Copii"]
[null,"Distracție",{"v":358,"d":"358 lei"},null,"Distracție"]
[null,"Alimente",{"v":1320,"d":"1,320 lei"},null,"Alimente"]
[null,"Cadouri și caritate",{"v":125,"d":"125 lei"},null,"Cadouri și caritate"]
[null,"Locuință",{"v":2702,"d":"2,702 lei"},null,"Locuință"]
[null,"Asigurare",{"v":900,"d":"900 lei"},null,"Asigurare"]
[null,"Împrumuturi",{"v":200,"d":"200 lei"},null,"Împrumuturi"]
[null,"Îngrijire personală",{"v":140,"d":"140 lei"},null,"Îngrijire personală"]
[null,"Animale de casă",{"v":100,"d":"100 lei"},null,"Animale de casă"]
[null,"Economii sau investiții",{"v":200,"d":"200 lei"},null,"Economii sau investiții"]
[null,"Taxe",{"v":300,"d":"300 lei"},null,"Taxe"]
[null,"Transport",{"v":1375,"d":"1,375 lei"},null,"Transport"]
[null,"Total general",{"v":7860,"d":"7,860 lei"}]